Workbook

Sheet таблица 2
K1: Приложение 2 к отчету
A3: Отчет об исполнении мероприятий муниципальной программы города Усолье-Сибирское
A4: Муниципальная программа «Развитие образования» на 2019-2027 годы
A5: (далее - муниципальная программа)
A6: за 2025 год
A7: № п/п | B7: Наименование муниципальной программы, подпрограммы, основного мероприятия, мероприятия, проекта | C7: Участники муниципальной программы, участники подпрограммы | D7: Источник финансирования | E7: Объем финансирования, предусмотренный на 2025 год, руб. | F7: Профинансировано за отчетный период, руб. | G7: Процент исполнения (гр.6/гр.5*100),% | H7: Наименование показателя мероприятия, единица измерения | I7: Плановое значение показателя мероприятия на 2025 год | J7: Фактическое значение показателя мероприятия | K7: Причины
A8: 1 | B8: 2 | C8: 3 | D8: 4 | E8: 5 | F8: 6 | G8: 7 | H8: 8 | I8: 9 | J8: 10 | K8: 11
A9: Муниципальная программа города Усолье-Сибирское «Развитие образования» на 2019-2027 годы | D9: Всего | E9: =E12+E11+E10+E13 -> 2,446,634,133.20 | F9: =F12+F11+F10+F13 -> 2,442,014,934.88 | G9: =F9/E9*100 -> 99.81 | H9: х | I9: х | J9: х | K9: х | L9: =E9/F9 -> 1.00
D10: Федеральный бюджет | E10: =E47+E95 -> 151,166,223.52 | F10: =F47+F95 -> 151,165,225.72 | G10: =F10/E10*100 -> 100.00
D11: Областной бюджет | E11: =E15+E48+E96+E116 -> 1,843,691,320.44 | F11: =F15+F48+F96+F116 -> 1,843,690,267.32 | G11: 100.00
D12: Местный бюджет | E12: =E16+E49+E97+E117+E136+E141 -> 449,616,089.24 | F12: =F16+F49+F97+F117+F136+F141 -> 444,998,941.83 | G12: 98.97
D13: Целевые средства | E13: =E17+E50+E98 -> 2,160,500.00 | F13: =F17+F50+F98 -> 2,160,500.01 | G13: 100.00
A14: 1. | B14: Подпрограмма 1 «Развитие дошкольного образования города Усолье-Сибирское» на 2019-2027 годы | D14: Всего | E14: =E15+E16+E17 -> 984,778,839.68 | F14: =F15+F16+F17 -> 984,678,728.50 | G14: =F14/E14*100 -> 99.99 | H14: х | I14: х | J14: х | K14: х | L14: =E14/F14 -> 1.00
D15: Областной бюджет | E15: =E19+E32+E35+E38+E41+E44 -> 907,672,200.00 | F15: =F19+F32+F35+F38+F41+F44 -> 907,672,199.99 | G15: =F15/E15*100 -> 100.00
D16: Местный бюджет | E16: =E20+E28+E29 -> 76,034,139.68 | F16: =F20+F28+F29 -> 75,934,028.50 | G16: =F16/E16*100 -> 99.87
D17: Целевые средства | E17: =E33+E36+E39+E42+E45 -> 1,072,500.00 | F17: =F33+F36+F39+F42+F45 -> 1,072,500.01 | G17: =F17/E17*100 -> 100.00
A18: 1.1. | B18: Основное мероприятие 1.1. Обеспечение деятельности дошкольных образовательных учреждений | C18: МБДОУ | D18: Всего | E18: =E19+E20 -> 972,577,645.94 | F18: =F19+F20 -> 972,477,534.76 | G18: 99.99 | H18: Доля детей от 1 года до 8 лет, охваченных дошкольным образованием от общего числа детей, в возрасте от 1 года до 8 лет | I18: 56.3 | J18: 56.3
D19: Областной бюджет | E19: =E22+E26 -> 898,272,200.00 | F19: =F22+F26 -> 898,272,200.00 | G19: 100.00
D20: Местный бюджет | E20: =E23+E24+E27 -> 74,305,445.94 | F20: =F23+F24+F27 -> 74,205,334.76 | G20: 99.87
A21: 1.1.1. | B21: Мероприятие 1.1.2. Обеспечение функционирования дошкольных образовательных учреждений, создание условий для осуществления воспитательно-образовательного процесса | C21: МБДОУ | D21: Всего | E21: =E22+E23 -> 966,913,610.59 | F21: =F22+F23 -> 966,813,499.41 | G21: =F21/E21*100 -> 99.99 | K21: Кредиторская задолженность (услуги связи, коммунальные расходы, питание и др.) составила 100 111,18 руб. Кредиторская задолженность оплачена в январе 2026 г.
D22: Областной бюджет | E22: 895,402,200.00 | F22: 895,402,200.00 | G22: 100.00
D23: Местный бюджет | E23: 71,511,410.59 | F23: 71,411,299.41 | G23: 99.86
A24: 1.1.2. | B24: Мероприятие 1.1.3. Проведение противопожарных мероприятий в дошкольных образовательных учреждениях | C24: МБДОУ | D24: Местный бюджет | E24: 2,510,055.35 | F24: 2,510,055.35 | G24: 100.00
A25: 1.1.3. | B25: Мероприятие 1.1.5. Софинансирование расходных обязательств органов местного самоуправления муниципальных образований Иркутской области по вопросам местного самоуправления по созданию условий для осуществления присмотра и ухода за детьми в муниципальных дошкольных образовательных организациях на обеспечение среднесуточного набора продуктов питания детей, страдающих туберкулезной интоксикацией и (или) находящихся под диспансерным наблюдением у фтизиатра посещающих группы оздоровительной направленности в муниципальных дошкольных образовательных организациях, расположенных на территории Иркутской области | C25: МБДОУ | D25: Всего | E25: =E26+E27 -> 3,153,980.00 | F25: =F26+F27 -> 3,153,980.00 | G25: 100.00 | L25: =E25-F25 -> 0.00
D26: Областной бюджет | E26: 2,870,000.00 | F26: =E26 -> 2,870,000.00 | G26: 100.00 | L26: =E26-F26 -> 0.00
D27: Местный бюджет | E27: 283,980.00 | F27: =E27 -> 283,980.00 | G27: 100.00 | L27: =E27-F27 -> 0.00
A28: 1.2. | B28: Основное мероприятие 1.4. Проведение ремонтных работ и мероприятий по благоустройству в дошкольных образовательных учреждениях | C28: МБДОУ | D28: Местный бюджет | E28: 1,528,693.74 | F28: =E28 -> 1,528,693.74 | G28: =F28/E28*100 -> 100.00 | H28: Удельный вес числа дошкольных образовательных учреждений, в которых проведен капитальный ремонт в общем числе дошкольных образовательных учреждений, здания которых требуют капитального ремонта. | I28: 0 | J28: 0
A29: 1.3. | B29: 1.19. Капитальный ремонт МБОУ «Детский сад №6» | C29: МКУ "ГУКС" | D29: Местный бюджет | E29: =E30 -> 200,000.00 | F29: =E29 -> 200,000.00 | G29: 100.00
A30: 1.4. | B30: 1.19.1.Обмерно-обследовательские работы, инженерно-геологические работы, микросейсморайонирование | C30: МКУ "ГУКС" | D30: Местный бюджет | E30: 200,000.00 | F30: =E30 -> 200,000.00 | G30: 100.00
A31: 1.5. | B31: Основное мероприятие 1.47. Правила дорожные - знать каждому положено! | C31: МБДОУ «Детский сад №44» | D31: Всего | E31: =E32+E33 -> 2,222,500.00 | F31: =F32+F33 -> 2,222,500.00 | G31: =F31/E31*100 -> 100.00 | H31: Количество дошкольных организаций, реализующих инициативные проекты/проекты народных инициатив на территории города Усолье-Сибирское | I31: 5 | J31: 5
D32: Областной бюджет | E32: 2,000,000.00 | F32: 2,000,000.00 | G32: 100.00
D33: Целевые средства | E33: 222,500.00 | F33: 222,500.00 | G33: 100.00
A34: 1.6. | B34: Основное мероприятие 1.48. Непоседы–спортивно-игровая площадка для дошколят | C34: МБДОУ «Детский сад №32» | D34: Всего | E34: =E35+E36 -> 2,000,000.00 | F34: =F35+F36 -> 2,000,000.00 | G34: =F34/E34*100 -> 100.00
D35: Областной бюджет | E35: 1,800,000.00 | F35: 1,800,000.00 | G35: 100.00
D36: Целевые средства | E36: 200,000.00 | F36: 200,000.00 | G36: 100.00
A37: 1.7. | B37: Основное мероприятие 1.49. Тропа здоровья | C37: МБДОУ «Детский сад №42» | D37: Всего | E37: =E38+E39 -> 2,000,000.00 | F37: =E37 -> 2,000,000.00 | G37: =F37/E37*100 -> 100.00
D38: Областной бюджет | E38: 1,800,000.00 | F38: 1,800,000.00 | G38: 100.00
D39: Целевые средства | E39: 200,000.00 | F39: 200,000.00 | G39: 100.00
A40: 1.8. | B40: Основное мероприятие 1.50. Спортивно-оздоровительный комплекс "МАЛЫШИ – КРЕПЫШИ" | C40: МБДОУ «Детский сад №40» | D40: Всего | E40: =E41+E42 -> 2,250,000.00 | F40: =E40 -> 2,250,000.00 | G40: =F40/E40*100 -> 100.00
D41: Областной бюджет | E41: 2,000,000.00 | F41: 1,999,999.99 | G41: 100.00
D42: Целевые средства | E42: 250,000.00 | F42: 250,000.01 | G42: 100.00
A43: 1.9. | B43: Основное мероприятие 1.51. Спортивная площадка | C43: МБДОУ «Детский сад №5» | D43: Всего | E43: =E44+E45 -> 2,000,000.00 | F43: =E43 -> 2,000,000.00 | G43: =F43/E43*100 -> 100.00
D44: Областной бюджет | E44: 1,800,000.00 | F44: 1,800,000.00 | G44: 100.00
D45: Целевые средства | E45: 200,000.00 | F45: 200,000.00 | G45: 100.00
A46: 2. | B46: Подпрограмма 2 «Развитие начального общего, основного общего, среднего общего образования города Усолье-Сибирское» на 2019-2027 годы | D46: Всего | E46: =E47+E48+E49+E50 -> 1,141,669,245.37 | F46: =F47+F48+F49+F50 -> 1,141,308,237.17 | G46: 99.97 | H46: х | I46: х | J46: х | K46: х | L46: =E46/F46 -> 1.00 | M46: 1.00
D47: Федеральный бюджет | E47: =E52+E76+E78+E92 -> 151,166,223.52 | F47: =F52+F76+F78+F92 -> 151,165,225.72 | G47: =F47/E47*100 -> 100.00
D48: Областной бюджет | E48: =E53+E73+E77+E80+E83+E86+E89+E93 -> 923,373,476.48 | F48: =F53+F73+F77+F80+F83+F86+F89+F93 -> 923,372,423.37 | G48: 100.00
D49: Местный бюджет | E49: =E54+E69+E74 -> 66,266,545.37 | F49: =F54+F69+F74 -> 65,907,588.08 | G49: 99.46
D50: Цеевые средства | E50: =E81+E84+E87+E90 -> 863,000.00 | F50: =F81+F84+F87+F90 -> 863,000.00 | G50: 100.00
A51: 2.1. | B51: Основное мероприятие 2.1. Обеспечение деятельности общеобразовательных учреждений и доступности общего образования | C51: МБОУ | D51: Всего | E51: =E52+E53+E54 -> 1,121,259,989.45 | F51: =F52+F53+F54 -> 1,120,899,400.94 | G51: 99.97 | H51: Доля успевающих учеников общеобразовательных учреждений в общем контингенте обучающихся общеобразовательных учреждений. | I51: 99.7 | J51: 99.7
D52: Федеральный бюджет | E52: =E65+E68 -> 142,704,000.00 | F52: =F65+F68 -> 142,703,345.00 | G52: =F52/E52*100 -> 100.00
D53: Областной бюджет | E53: =E56+E61+E66 -> 913,382,900.00 | F53: =F56+F61+F66 -> 913,381,918.45 | G53: 100.00 | H53: Количество обучающихся, воспользовавшихся услугами общественного транспорта в целях доступности получения услуги начального общего, основного общего, среднего общего образования. | I53: 2700 | J53: 2894
D54: Местный бюджет | E54: =E57+E58+E59+E62+E63+E67 -> 65,173,089.45 | F54: =F57+F58+F59+F62+F63++F67 -> 64,814,137.49 | G54: 99.45
A55: 2.1.1. | B55: Мероприятие 2.1.2. Обеспечение функционирования общеобразовательных учреждений, создание условий для осуществления воспитательно-образовательного процесса (Обеспечение государственных гарантий реализации прав на получение общедоступного и бесплатного начального общего, основного общего, среднего общего образования в муниципальных общеобразовательных организациях, обеспечение дополнительного образования детей в муниципальных общеобразовательных организациях) | C55: МБОУ | D55: Всего | E55: =E56+E57 -> 933,631,052.62 | F55: =F56+F57 -> 933,488,412.07 | G55: 99.98 | K55: Кредиторская задолженность (услуги связи, коммунальные расходы, питание и др.) составила 142 640,55 руб. Кредиторская задолженность оплачена в январе 2026 г.
D56: Областной бюджет | E56: 885,189,200.00 | F56: 885,188,800.00 | G56: 100.00
D57: Местный бюджет | E57: 48,441,852.62 | F57: 48,299,612.07 | G57: 99.71
A58: 2.1.2. | B58: Мероприятие 2.1.3. Проведение противопожарных мероприятий в общеобразовательных учреждениях | C58: МБОУ | D58: Местный бюджет | E58: 1,769,479.38 | F58: =E58 -> 1,769,479.38 | G58: 100.00 | L58: =E58-F58 -> 0.00
A59: 2.1.3. | B59: Мероприятие 2.1.4. Организация государственной итоговой аттестации выпускников | C59: МКУ «ИМЦ» | D59: Местный бюджет | E59: 260,000.00 | F59: =E59 -> 260,000.00 | G59: 100.00
A60: 2.1.4. | B60: Мероприятие 2.1.5. Обеспечение бесплатным двухразовым питанием обучающихся с ограниченными возможностями здоровья в муниципальных общеобразовательных организациях в Иркутской области | C60: МБОУ, МБУ "Комбинат питания" | D60: Всего | E60: =E61+E62 -> 14,892,600.00 | F60: =F61+F62 -> 14,891,621.89 | G60: =F60/E60*100 -> 99.99 | K60: Экономия составила 978,11 руб., в связи с фактической потребностью.
D61: Областной бюджет | E61: 13,117,500.00 | F61: 13,117,499.05 | G61: 100.00
D62: Местный бюджет | E62: 1,775,100.00 | F62: 1,774,122.84 | G62: 99.94
A63: 2.1.5. | B63: Мероприятие 2.1.6. Предоставление льгот на проезд в городском общественном транспорте (кроме такси) обучающихся общеобразовательных учреждений, находящихся на территории муниципального образования "город Усолье-Сибирское" | C63: Отдел образования | D63: Местный бюджет | E63: 8,562,337.45 | F63: 8,346,696.20 | G63: 97.48 | K63: Кредиторская задолженность составила 215 641,25 руб. Кредиторская задолженность оплачена в январе 2026 г.
A64: 2.1.7. | B64: Мероприятие 2.1.8. Организация бесплатного горячего питания обучающихся, получающих начальное общее образование в государственных и муниципальных образовательных организациях | C64: МБОУ, МБУ "Комбинат питания" | D64: Всего | E64: =E65+E66+E67 -> 62,347,320.00 | F64: =F65+F66+F67 -> 62,345,991.40 | G64: 99.99 | H64: Доля обучающихся, получающих начальное общее образование в государственных и муниципальных образовательных организациях, получающих бесплатное горячее питание, к общему количеству обучающихся, получающих начальное общее образование в государственных и муниципальных образовательных организациях. | I64: 100 | J64: 100 | K64: Экономия составила 1 328,60 руб., в связи с фактической потребностью.
D65: Федеральный бюджет | E65: 42,906,800.00 | F65: 42,906,145.00 | G65: =F65/E65*100 -> 100.00
D66: Областной бюджет | E66: 15,076,200.00 | F66: 15,075,619.40 | G66: 100.00
D67: Местный бюджет | E67: 4,364,320.00 | F67: 4,364,227.00 | G67: =F67/E67*100 -> 100.00
A68: 2.1.8. | B68: Мероприятие 2.1.9. Обеспечение выплат ежемесячного денежного вознаграждения за классное руководство педагогическим работникам муниципальных образовательных организаций, реализующих образовательные программы начального общего, основного общего и среднего общего образования, в том числе адаптированные основные общеобразовательные программы | C68: МБОУ | D68: Федеральный бюджет | E68: 99,797,200.00 | F68: =E68 -> 99,797,200.00 | G68: =F68/E68*100 -> 100.00 | H68: Доля педагогических работников общеобразовательных организаций, получивших вознаграждение за классное руководство, в общей численности педагогических работников такой категории | I68: 100 | J68: 100
A69: 2.2. | B69: Основное мероприятие 2.2. Ремонтные работы и мероприятия по благоустройству в образовательных учреждениях | C69: МБОУ | D69: Местный бюджет | E69: =E70+E71 -> 909,105.92 | F69: =F70+F71 -> 909,105.92 | G69: 100.00 | H69: Удельный вес числа общеобразовательных учреждений, в которых проведен капитальный ремонт в общем числе общеобразовательных учреждений, здания которых требуют капитального ремонта. | I69: 0 | J69: 0 | M69: =E69-F69 -> 0.00
B70: 2.2.1. Проведение ремонтных работ и мероприятий по благоустройству, оснащению в общеобразовательных учреждениях | C70: МБОУ | D70: Местный бюджет | E70: 753,572.92 | F70: =E70 -> 753,572.92 | G70: 100.00
B71: 2.2.2. Проведение ремонтных работ и мероприятий по благоустройству в образовательных учреждениях | C71: МБОУ | D71: Местный бюджет | E71: 155,533.00 | F71: =E71 -> 155,533.00 | G71: 100.00
A72: 2.7. | B72: Основное мероприятие 2.39. Приобретение учебников и учебных пособий, а так же учебно-методических материалов | C72: МБОУ | D72: Всего | E72: =E73+E74 -> 2,047,250.00 | F72: =F73+F74 -> 2,047,190.78 | G72: =F72/E72*100 -> 100.00 | H72: Количество общеобразовательных организаций, обеспеченных учебниками и учебными пособиями, а также учебно-методическими материалами, необходимыми для реализации образовательных программ | I72: 5 | J72: 5 | K72: Экономия составила 59,22 руб. от проведения электронного аукциона | M72: =E72-F72 -> 59.22
D73: Областной бюджет | E73: 1,862,900.00 | F73: 1,862,846.11 | G73: =F73/E73*100 -> 100.00
D74: Местный бюджет | E74: 184,350.00 | F74: 184,344.67 | G74: =F74/E74*100 -> 100.00
A75: 2.8. | B75: Основное мероприятие 2.40. Финансовое обеспечение мероприятий по обеспечению деятельности советников директора по воспитанию и взаимодействию с детскими общественными объединениями в муниципальных общеобразовательных организациях в Иркутской области | C75: МБОУ | D75: Всего | E75: =E76+E77 -> 5,533,000.00 | F75: =F76+F77 -> 5,532,827.53 | G75: 100.00 | H75: Доля общеобразовательных организаций, в которых введена должность советник директора по взаимодействию с детскимиобщественными объединениями в государственных и муниципальных организациях города Усолье-Сибирское | I75: 100 | J75: 100 | K75: Экономия составила 172,47 руб. от проведения электронного аукциона | M75: =F75-E75 -> -172.47
D76: Федеральный бюджет | E76: 5,256,348.00 | F76: 5,256,183.75 | G76: 100.00
D77: Областной бюджет | E77: 276,652.00 | F77: 276,643.78 | G77: =F77/E77*100 -> 100.00
B78: Основное мероприятие 2.55. Обеспечение выплат ежемесячного денежного вознаграждения советникам директоров по воспитанию и взаимодействию с детскими общественными объединениями муниципальных общеобразовательных организаций Иркутской области | C78: МБОУ | D78: Федеральный бюджет | E78: 1,485,000.00 | F78: =E78 -> 1,485,000.00 | G78: =F78/E78*100 -> 100.00 | H78: Доля общеобразовательных организаций, в которых введена должность советник директора по взаимодействию с детскими общественными объединениями в государственных и муниципальных общеобразовательных организациях города Усолье- Сибирское | I78: 100 | J78: 100
A79: 2.9. | B79: Основное мероприятие 2.57. Любимой школе - красивый двор | C79: МБОУ «СОШ №16» | D79: Всего | E79: =E80+E81 -> 2,200,000.00 | F79: =F80+F81 -> 2,200,000.00 | G79: 100.00 | H79: Количество общеобразовательных организаций, реализующих инициативные проекты на территории города Усолье-Сибирское | I79: 4 | J79: 4
D80: Областной бюджет | E80: 1,980,000.00 | F80: 1,980,000.00 | G80: 100.00
D81: Целевые средства | E81: 220,000.00 | F81: 220,000.00 | G81: 100.00
A82: 2.10. | B82: Основное мероприятие 2.58. Радуга здоровья | C82: МБОУ «СОШ №13» | D82: Всего | E82: =E83+E84 -> 2,000,000.00 | F82: =F83+F84 -> 2,000,000.00 | G82: =F82/E82*100 -> 100.00
D83: Областной бюджет | E83: 1,800,000.00 | F83: 1,800,000.00 | G83: 100.00
D84: Целевые средства | E84: 200,000.00 | F84: 200,000.00 | G84: 100.00
A85: 2.11. | B85: Основное мероприятие 2.59. Спорт – движение, жизнь, здоровье! | C85: МБОУ «Лицей №1» | D85: Всего | E85: =E86+E87 -> 2,200,000.00 | F85: =F86+F87 -> 2,200,000.00 | G85: =F85/E85*100 -> 100.00
D86: Областной бюджет | E86: 1,980,000.00 | F86: 1,980,000.00 | G86: 100.00
D87: Целевые средства | E87: 220,000.00 | F87: 220,000.00 | G87: 100.00
A88: 2.12. | B88: Основное мероприятие 2.60. Зажигаем звезды! | C88: МБОУ «Гимназия №9» | D88: Всего | E88: =E89+E90 -> 2,223,000.00 | F88: =F89+F90 -> 2,223,000.00 | G88: =F88/E88*100 -> 100
D89: Областной бюджет | E89: 2,000,000.00 | F89: 2,000,000.00 | G89: 100.00
D90: Целевые средства | E90: 223,000.00 | F90: 223,000.00 | G90: 100.00
A91: 2.13. | B91: Основное мероприятие 2.61. Оснащение предметных кабинетов муниципальных общеобразовательных организаций в Иркутской области оборудованием, средствами обучения и воспитания | C91: Администрация города Усолье-Сибирское | D91: Всего | E91: =E92+E93 -> 1,811,900.00 | F91: =F92+F93 -> 1,811,712.00 | G91: =F91/E91*100 -> 99.99 | H91: Доля общеобразовательных учреждений, оснастивших предметные кабинеты оборудованием, средствами обучения и воспитания | I91: 71 | J91: 71 | K91: Экономия составила 188,00 руб. от проведения электронного аукциона
D92: Федеральный бюджет | E92: 1,720,875.52 | F92: 1,720,696.97 | G92: 99.99
D93: Областной бюджет | E93: 91,024.48 | F93: 91,015.03 | G93: 99.99
A94: 3. | B94: Подпрограмма 3 «Развитие дополнительного образования города Усолье-Сибирское» на 2019-2027 годы | D94: Всего | E94: =E95+E96+E97+E98 -> 280,215,405.67 | F94: =F95+F96+F97+F98 -> 276,191,658.11 | G94: 98.56 | H94: х | I94: х | J94: х | K94: х | L94: =E94/F94 -> 1.01
D95: Федеральный бюджет | E95: 0.00 | F95: 0.00 | G95: 0.00
D96: Областной бюджет | E96: =E110+E113 -> 3,290,379.96 | F96: =F110+F113 -> 3,290,379.96 | G96: 100.00
D97: Местный бюджет | E97: =E99+E105+E114 -> 276,700,025.71 | F97: =F99+F105+F114 -> 272,676,278.15 | G97: 98.55
D98: Целевые средства | E98: =E111 -> 225,000.00 | F98: =F111 -> 225,000.00 | G98: 100.00
A99: 3.1. | B99: Основное мероприятие 3.1. Организация предоставления доступного современного качественного дополнительного образования | C99: МБУ ДО | D99: Местный бюджет | E99: =E100+E101+E102+E103+E104 -> 275,687,409.67 | F99: =F100+F101+F102+F103+F104 -> 271,663,662.11 | G99: 98.54 | H99: Доля детей, получающих услуги дополнительного образования, в общей численности детей в возрасте 5-18 лет. | I99: 71 | J99: 71
A100: 3.1.1. | B100: Мероприятие 3.1.2. Обеспечение функционирования МБУ ДО «ДДТ», МБУ ДО «ДЮСШ №1», МБУ ДО «СЮН», создание условий для осуществления воспитательно-образовательного процесса | C100: МБУ ДО | D100: Местный бюджет | E100: 125,217,892.14 | F100: 125,092,003.38 | G100: 99.90 | K100: Экономия составила 125 888,76 руб. по обеспечению функционирования МБУ ДО «ДДТ», МБУ ДО «ДЮСШ №1», МБУ ДО «СЮН», создание условий для осуществления воспитательно-образовательного процесса в связи с фактической потребностью
A101: 3.1.2. | B101: Мероприятие 3.1.3. Обеспечение функционирования МБУ ДО «ДМШ», МБУ ДО «ДХШ», создание условий для осуществления воспитательно-образовательного процесса | C101: МБУ ДО | D101: Местный бюджет | E101: 70,661,259.01 | F101: 69,715,720.52 | G101: 98.66 | K101: Экономия составила 945 538,49 руб. по обеспечению функционирования МБУ ДО «ДМШ», МБУ ДО «ДХШ», создание условий для осуществления воспитательно-образовательного процесса в связи с фактической потребностью.
A102: 3.1.3. | B102: Мероприятие 3.1.4. Проведение противопожарных мероприятий в учреждениях дополнительного образования | C102: МБУ ДО | D102: Местный бюджет | E102: 517,171.00 | F102: =E102 -> 517,171.00 | G102: 100.00
A103: 3.1.4. | B103: Мероприятие 3.1.7. Проведение ремонтных работ и мероприятий по благоустройству в учреждениях дополнительного образования (МБУ ДО "ДЮСШ № 1", МБУ ДО "ДДТ", МБУ ДО "СЮН") | C103: МБУ ДО | D103: Местный бюджет | E103: 1,549,389.49 | F103: 1,549,389.49 | G103: =F103/E103*100 -> 100.00
A104: 3.1.8. | B104: Мероприятие 3.1.8. Обеспечение функционирования системы персонифицированного финансирования дополнительного образования детей | C104: Отдел образования, МБУ ДО | D104: Местный бюджет | E104: 77,741,698.03 | F104: 74,789,377.72 | G104: 96.20 | H104: Доля детей в возрасте от 5 до 18 лет, имеющих право на получение дополнительного образования в рамках системы персонифицированного финансирования | I104: 25 | J104: 25 | K104: Неисполнение составило 2 952 320,31 рублей. В течение 2025 года отсутствовала потребность в предоставлении субсидии юридическим лицам
A105: 3.2. | B105: Основное мероприятие 3.2. Проведение мероприятий с социально активными и творческими учащимися | C105: МБУ ДО | D105: Местный бюджет | E105: =E106+E107+E108 -> 884,996.00 | F105: =E105 -> 884,996.00 | G105: 100.00 | H105: Доля детей, получающих услуги дополнительного образования, в общей численности детей в возрасте 5-18 лет. | I105: 71 | J105: 71
A106: 3.2.1. | B106: Основное мероприятие 3.2.4. Мероприятия экологической направленности | C106: МБУ ДО | D106: Местный бюджет | E106: 599,996.00 | F106: =E106 -> 599,996.00 | G106: =F106/E106*100 -> 100.00
A107: 3.2.2. | B107: Мероприятие 3.2.5. Праздничные мероприятия для обучающихся образовательных организаций | C107: Отдел образования, МБУ ДО | D107: Местный бюджет | E107: 270,000.00 | F107: 270,000.00 | G107: =F107/E107*100 -> 100.00
A108: 3.2.3. | B108: Мероприятие 3.2.6. Мероприятия по формированию семейных ценностей | C108: МБУ ДО | D108: Местный бюджет | E108: 15,000.00 | F108: 15,000.00 | G108: =F108/E108*100 -> 100.00
A109: 3.3. | B109: Основное мероприятие 3.19. Спортивно - игровая площадка | C109: МБУ ДО "ДЮСШ №1" | D109: Всего | E109: =E110+E111 -> 2,225,000.00 | F109: =F110+F111 -> 2,225,000.00 | G109: 100.00 | H109: Количество организаций дополнительного образования, реализующих инициативные проекты/проекты народных инициатив на территории города Усолье-Сибирское | I109: 1 | J109: 1
D110: Областной бюджет | E110: 2,000,000.00 | F110: 2,000,000.00 | G110: 100.00
D111: Целевые средства | E111: 225,000.00 | F111: 225,000.00 | G111: 100.00
A112: 3.4. | B112: Основное мероприятие 3.20. Приобретение и установка спортивного оборудования для спортивной площадки МБУДО "ДЮСШ №1" | C112: МБУ ДО "ДЮСШ №1" | D112: Всего | E112: =E113+E114 -> 1,418,000.00 | F112: =F113+F114 -> 1,418,000.00 | G112: 100.00
D113: Областной бюджет | E113: 1,290,379.96 | F113: 1,290,379.96 | G113: 100.00
D114: Местный бюджет | E114: 127,620.04 | F114: 127,620.04 | G114: 100.00
A115: 4. | B115: Подпрограмма 4 «Организация отдыха и занятости детей в каникулярное время» на 2019-2027 годы | D115: Всего | E115: =E116+E117 -> 26,189,054.12 | F115: =F116+F117 -> 26,189,054.12 | G115: =F115/E115*100 -> 100.00 | H115: х | I115: х | J115: х | K115: х | L115: =E115/F115 -> 1.00
D116: Областной бюджет | E116: =E123+E131+E134 -> 9,355,264.00 | F116: =F123+F131+F134 -> 9,355,264.00 | G116: 100.00
D117: Местный бюджет | E117: =E118+E124+E132+E135 -> 16,833,790.12 | F117: =F118+F124+F132+F135 -> 16,833,790.12 | G117: 100.00
A118: 4.1. | B118: Основное мероприятие 4.1. Организация отдыха и оздоровления детей и подростков на базе детских оздоровительных лагерей | C118: МБУ ДО | D118: Местный бюджет | E118: =E119+E120+E121 -> 9,389,061.14 | F118: =F119+F120+F121 -> 9,389,061.14 | G118: 100.00 | H118: Количество детей, охваченных отдыхом в детских оздоровительных лагерях | I118: 1140 | J118: 1094
A119: 4.1.1. | B119: Мероприятие 4.1.1. Организация работы детского оздоровительного лагеря «Смена». | C119: МБУ ДО | D119: Местный бюджет | E119: 1,891,003.39 | F119: =E119 -> 1,891,003.39 | G119: 100.00
A120: 4.1.2. | B120: Мероприятие 4.1.2. Организация работы детского оздоровительного лагеря «Юность» | C120: МБУ ДО | D120: Местный бюджет | E120: 2,060,832.73 | F120: =E120 -> 2,060,832.73 | G120: 100.00
A121: 4.1.3. | B121: Мероприятие 4.1.4. Организация работы детского оздоровительного лагеря «Восток» | C121: МБУ ДО | D121: Местный бюджет | E121: 5,437,225.02 | F121: =E121 -> 5,437,225.02 | G121: =F121/E121*100 -> 100.00
A122: 4.2. | B122: Основное мероприятие 4.2. Организация отдыха и занятости молодежи и несовершеннолетних на базе общеобразовательных учреждений. | C122: МБОУ | D122: Всего : | E122: =E123+E124 -> 9,625,306.98 | F122: =F123+F124 -> 9,625,306.98 | G122: =F122/E122*100 -> 100.00 | H122: Количество детей, охваченных отдыхом в лагерях с дневным пребыванием детей. | I122: 1015 | J122: 1015
D123: Областной бюджет | E123: =E127 -> 2,826,300.00 | F123: =E123 -> 2,826,300.00 | G123: 100.00
D124: Местный бюджет | E124: =E125+E128+E129 -> 6,799,006.98 | F124: =E124 -> 6,799,006.98 | G124: 100.00
A125: 4.2.1. | B125: Мероприятие 4.2.1. Организация работы лагерей с дневным пребыванием детей на базе общеобразовательных учреждений. | C125: МБОУ, МБУ ДО | D125: Местный бюджет | E125: 3,657,790.71 | F125: =E125 -> 3,657,790.71 | G125: 100.00
A126: 4.2.2. | B126: Мероприятие 4.2.2. Софинансирование расходных обязательств органов местного самоуправления муниципальных образований Иркутской области по вопросам местного значения по организации отдыха детей в каникулярное время на оплату стоимости набора продуктов питания в лагерях с дневным пребыванием детей, организованных органами местного самоуправления муниципальных образований Иркутской области за счет средств областного бюджета | C126: МБОУ, МБУ ДО | D126: Всего : | E126: =E127+E128 -> 3,105,900.00 | F126: =F127+F128 -> 3,105,900.00 | G126: 100.00
D127: Областной бюджет | E127: 2,826,300.00 | F127: =E127 -> 2,826,300.00 | G127: 100.00
D128: Местный бюджет | E128: 279,600.00 | F128: =E128 -> 279,600.00 | G128: 100.00
A129: 4.2.3. | B129: Мероприятие 4.2.4. Организация трудовой занятости молодежи и несовершеннолетних, в том числе состоящих на учете в общеобразовательных организациях и правоохранительных органах, в летний период. | C129: МБОУ, МБУ ДО | D129: Местный бюджет | E129: 2,861,616.27 | F129: 2,861,616.27 | G129: 100.00 | H129: Количество молодежи и несовершеннолетних, в том числе состоящих на учете в общеобразовательных учреждениях и правоохранительных органах, охваченных трудовой занятостью в каникулярное время | I129: 150 | J129: 170
A130: 4.3. | B130: Основное мероприятие 4.4. Укрепление материально-технической базы детского оздоровительного лагеря «Юность» (Софинансирование расходных обязательств органов местного самоуправления муниципальных образований Иркутской области по вопросам местного значения по организации отдыха детей в каникулярное время на укрепление материально-технической базы муниципальных учреждений, оказывающих услуги по организации отдыха и оздоровления детей в Иркутской области) | C130: МБУ ДО | D130: Всего | E130: =E132+E131 -> 3,514,132.00 | F130: =F131+F132 -> 3,514,132.00 | G130: =F130/E130*100 -> 100.00 | H130: Количество детей, охваченных отдыхом в детских оздоровительных лагерях | I130: 1140 | J130: 1094
D131: Областной бюджет | E131: 3,197,859.99 | F131: =E131 -> 3,197,859.99 | G131: 100.00
D132: Местный бюджет | E132: 316,272.01 | F132: =E132 -> 316,272.01 | G132: =F132/E132*100 -> 100.00
B133: Основное мероприятие 4.5. Укрепление материально-технической базы спортивно-оздоровительного лагеря «Восток» | C133: МБУ ДО | D133: Всего | E133: =E135+E134 -> 3,660,554.00 | F133: =F134+F135 -> 3,660,554.00 | G133: 100.00
D134: Областной бюджет | E134: 3,331,104.01 | F134: =E134 -> 3,331,104.01 | G134: 100.00
D135: Местный бюджет | E135: 329,449.99 | F135: =E135 -> 329,449.99 | G135: =F135/E135*100 -> 100.00
A136: 5. | B136: Подпрограмма 5 «Обеспечение организационных, информационных и методических профессиональных потребностей педагогических и руководящих работников образовательных учреждений» | D136: Местный бюджет | E136: =E137 -> 13,108,488.36 | F136: =F137 -> 13,057,232.13 | G136: =F136/E136*100 -> 99.61 | H136: х | I136: х | J136: х | K136: х | L136: =E136/F136 -> 1.00
A137: 5.1. | B137: Основное мероприятие 5.1. Создание организационно - управленческих, информационно-методических условий, ориентированных на обеспечение доступности качественного образования | C137: МКУ "ИМЦ" | D137: Местный бюджет | E137: =E139+E140 -> 13,108,488.36 | F137: =F139+F140 -> 13,057,232.13 | G137: =F137/E137*100 -> 99.61 | H137: Доля педагогических работников образовательных учреждений, имеющих аттестацию, в общей численности педагогических работников образовательных учреждений. | I137: 59 | J137: 59
H138: Удельный вес числа образовательных учреждений, обеспечивающих предоставление нормативно закрепленного перечня сведений о своей деятельности на официальных сайтах, в общем числе образовательных учреждений. | I138: 100 | J138: 100
A139: 5.1.1. | B139: Мероприятие 5.1.3. Обеспечение деятельности Территориальной психолого-медико-педагогической комиссии | C139: МКУ "ИМЦ" | D139: Местный бюджет | E139: 266,955.24 | F139: =E139 -> 266,955.24 | G139: =F139/E139*100 -> 100.00 | H139: Количество муниципальных образовательных учреждений, охваченных организационно-управленческими, информационно-методическими услугами. | I139: 44 | J139: 44
A140: 5.1.2. | B140: Мероприятие 5.1.4. Обеспечение деятельности МКУ «ИМЦ» | C140: МКУ «ИМЦ» | D140: Местный бюджет | E140: 12,841,533.12 | F140: 12,790,276.89 | G140: 99.60 | K140: Кредиторская задолженность (услуги связи, коммунальные расходы, питание и др.) составила 51 256,23 руб. Кредиторская задолженность оплачена в январе 2026 г.
A141: 6. | B141: Подпрограмма 6 «Обеспечение условий реализации национального проекта «Образование» на муниципальном уровне» на 2020-2027 годы | D141: Местный бюджет | E141: =E142+E145 -> 673,100.00 | F141: =F142+F145 -> 590,024.85 | G141: 87.66 | H141: х | I141: х | J141: х | K141: х
A142: 6.1. | B142: Основное мероприятие 6.1. Проект «Успех каждого ребенка» | C142: МКУ «ИМЦ», МБУ ДО | D142: Местный бюджет | E142: =E143+E144 -> 508,200.00 | F142: =F143+F144 -> 425,124.85 | G142: 83.65 | H142: Доля детей в возрасте от 5 до 18 лет, охваченных дополнительным образованием | I142: 71 | J142: 71
A143: 6.1.1. | B143: Мероприятие 6.1.1. Мероприятия, направленные на выявление одаренных детей | C143: МКУ «ИМЦ» | D143: Местный бюджет | E143: =40000+106000 -> 146,000.00 | F143: =E143 -> 146,000.00 | G143: 100.00
A144: 6.1.2. | B144: Мероприятие 6.1.2. Проведение мероприятий с социально активными и творческими учащимися | C144: МБУ ДО | D144: Местный бюджет | E144: 362,200.00 | F144: 279,124.85 | G144: 77.06 | K144: Экономия составила 83075,15 руб. в связи с фактической потребностью по обеспечению деятельности ДДТ.
A145: 6.2. | B145: Основное мероприятие 6.2. Проект «Учитель будущего» | C145: МКУ «ИМЦ» | D145: Местный бюджет | E145: =E146 -> 164,900.00 | F145: =F146 -> 164,900.00 | G145: 100.00 | H145: Доля учителей общеобразовательных организаций, вовлеченных в национальную систему профессионального роста педагогических работников | I145: 36 | J145: 42
A146: 6.2.1. | B146: Мероприятие 6.2.1. Проведение конкурсов профессионального мастерства, конференций | C146: МКУ «ИМЦ» | D146: Местный бюджет | E146: 164,900.00 | F146: =E146 -> 164,900.00 | G146: 100.00
A147: Мэр города М.В. Торопкин
